Department family,Entity,Date,Expense Type,Expense area,Supplier,Transaction number,AP Amount (�)
Department of Health,NHS Barnsley CCG,30/06/2018,Clinical&Medical-Commercial Sector,LEARNING DIFFICULTIES,ASC HEALTHCARE LTD,22516189,"44,631.30 "
Department of Health,NHS Barnsley CCG,30/06/2018,C&M-GMS LES Demand Mgmt,COMMISSIONING SCHEMES,ASHVILLE MEDICAL PRACTICE,22488033,"32,886.15 "
Department of Health,NHS Barnsley CCG,30/06/2018,Clinical&Medical-Clinical Other,COMMISSIONING SCHEMES,ASHVILLE MEDICAL PRACTICE,22488033,"11,478.74 "
Department of Health,NHS Barnsley CCG,30/06/2018,C&M-APMS Contract Value,PRC DELEGATED CO-COMMISSIONING,BARNSLEY HEALTHCARE FEDERATION,22567817,"25,918.48 "
Department of Health,NHS Barnsley CCG,30/06/2018,C&M-APMS DES Minor Surgery,PRC DELEGATED CO-COMMISSIONING,BARNSLEY HEALTHCARE FEDERATION,22567817,340.96 
Department of Health,NHS Barnsley CCG,30/06/2018,C&M-APMS Prem Actual Rent,PRC DELEGATED CO-COMMISSIONING,BARNSLEY HEALTHCARE FEDERATION,22567817,"1,310.42 "
Department of Health,NHS Barnsley CCG,30/06/2018,C&M-APMS Prem Rates,PRC DELEGATED CO-COMMISSIONING,BARNSLEY HEALTHCARE FEDERATION,22567817,448.00 
Department of Health,NHS Barnsley CCG,30/06/2018,C&M-PMS QOF Aspiration,PRC DELEGATED CO-COMMISSIONING,BARNSLEY HEALTHCARE FEDERATION,22567817,"2,327.36 "
Department of Health,NHS Barnsley CCG,30/06/2018,C&M-APMS Contract Value,PRC DELEGATED CO-COMMISSIONING,BARNSLEY HEALTHCARE FEDERATION,22567819,"31,070.83 "
Department of Health,NHS Barnsley CCG,30/06/2018,C&M-APMS DES Minor Surgery,PRC DELEGATED CO-COMMISSIONING,BARNSLEY HEALTHCARE FEDERATION,22567819,"1,108.12 "
Department of Health,NHS Barnsley CCG,30/06/2018,C&M-APMS Prem Actual Rent,PRC DELEGATED CO-COMMISSIONING,BARNSLEY HEALTHCARE FEDERATION,22567819,"2,150.00 "
Department of Health,NHS Barnsley CCG,30/06/2018,C&M-APMS Prem Healthcentre Rent,PRC DELEGATED CO-COMMISSIONING,BARNSLEY HEALTHCARE FEDERATION,22567819,"7,057.88 "
Department of Health,NHS Barnsley CCG,30/06/2018,C&M-APMS Prem Rates,PRC DELEGATED CO-COMMISSIONING,BARNSLEY HEALTHCARE FEDERATION,22567819,492.00 
Department of Health,NHS Barnsley CCG,30/06/2018,C&M-PMS QOF Aspiration,PRC DELEGATED CO-COMMISSIONING,BARNSLEY HEALTHCARE FEDERATION,22567819,"2,420.56 "
Department of Health,NHS Barnsley CCG,30/06/2018,C&M-APMS Contract Value,PRC DELEGATED CO-COMMISSIONING,BARNSLEY HEALTHCARE FEDERATION,22567821,"27,654.67 "
Department of Health,NHS Barnsley CCG,30/06/2018,C&M-APMS OOH Opt Outs,PRC DELEGATED CO-COMMISSIONING,BARNSLEY HEALTHCARE FEDERATION,22567821,3.28 
Department of Health,NHS Barnsley CCG,30/06/2018,C&M-APMS Prem Actual Rent,PRC DELEGATED CO-COMMISSIONING,BARNSLEY HEALTHCARE FEDERATION,22567821,"6,200.00 "
Department of Health,NHS Barnsley CCG,30/06/2018,C&M-APMS Prem Rates,PRC DELEGATED CO-COMMISSIONING,BARNSLEY HEALTHCARE FEDERATION,22567821,"1,748.00 "
Department of Health,NHS Barnsley CCG,30/06/2018,C&M-PMS QOF Aspiration,PRC DELEGATED CO-COMMISSIONING,BARNSLEY HEALTHCARE FEDERATION,22567821,"2,727.89 "
Department of Health,NHS Barnsley CCG,30/06/2018,Clinical&Medical-Commercial Sector,OUT OF HOURS,BARNSLEY HEALTHCARE FEDERATION,22806122,"124,715.53 "
Department of Health,NHS Barnsley CCG,30/06/2018,Miscellaneous Expenditure (L9),PCTF Revenue,BARNSLEY HEALTHCARE FEDERATION,22806132,"132,164.41 "
Department of Health,NHS Barnsley CCG,30/06/2018,C&M-PMS Contract Value,PRC DELEGATED CO-COMMISSIONING,BARNSLEY HEALTHCARE FEDERATION CIC (GOLDTHORPE),22573020,"39,973.58 "
Department of Health,NHS Barnsley CCG,30/06/2018,C&M-PMS DES Minor Surgery,PRC DELEGATED CO-COMMISSIONING,BARNSLEY HEALTHCARE FEDERATION CIC (GOLDTHORPE),22573020,"1,108.12 "
Department of Health,NHS Barnsley CCG,30/06/2018,C&M-PMS Out of Hours Opt Outs,PRC DELEGATED CO-COMMISSIONING,BARNSLEY HEALTHCARE FEDERATION CIC (GOLDTHORPE),22573020,14.42 
Department of Health,NHS Barnsley CCG,30/06/2018,C&M-PMS Prem Healthcentre Rent,PRC DELEGATED CO-COMMISSIONING,BARNSLEY HEALTHCARE FEDERATION CIC (GOLDTHORPE),22573020,"11,654.20 "
Department of Health,NHS Barnsley CCG,30/06/2018,C&M-PMS QOF Aspiration,PRC DELEGATED CO-COMMISSIONING,BARNSLEY HEALTHCARE FEDERATION CIC (GOLDTHORPE),22573020,"4,158.04 "
Department of Health,NHS Barnsley CCG,30/06/2018,Clinical&Medical-Voluntary Sector,HOSPICES,BARNSLEY HOSPICE,22744290,"397,271.52 "
Department of Health,NHS Barnsley CCG,31/05/2018,Hcare Srv Rec Fdtn Trust-Contract Baseline,ACUTE COMMISSIONING,BARNSLEY HOSPITAL NHS FOUNDATION TRUST,22209177,"-435,080.00"
Department of Health,NHS Barnsley CCG,31/05/2018,Hcare Srv Rec Fdtn Trust-CQUIN,ACUTE COMMISSIONING,BARNSLEY HOSPITAL NHS FOUNDATION TRUST,22209172,"-10,752.00"
Department of Health,NHS Barnsley CCG,31/05/2018,Hcare Srv Rec Fdtn Trust-Contract Baseline,ACUTE COMMISSIONING,BARNSLEY HOSPITAL NHS FOUNDATION TRUST,22209172,"-430,084.00"
Department of Health,NHS Barnsley CCG,31/05/2018,Hcare Srv Rec Fdtn Trust-CQUIN,ACUTE COMMISSIONING,BARNSLEY HOSPITAL NHS FOUNDATION TRUST,22209176,"-3,206.00"
Department of Health,NHS Barnsley CCG,31/05/2018,Hcare Srv Rec Fdtn Trust-Contract Baseline,ACUTE COMMISSIONING,BARNSLEY HOSPITAL NHS FOUNDATION TRUST,22209176,"-29,722.46"
Department of Health,NHS Barnsley CCG,31/05/2018,Clinical&Medical-Serv Recd-F Trsts,INTERMEDIATE CARE,BARNSLEY HOSPITAL NHS FOUNDATION TRUST,22402492,"363,568.00"
Department of Health,NHS Barnsley CCG,31/05/2018,Hcare Srv Rec Fdtn Trust-CQUIN,INTERMEDIATE CARE,BARNSLEY HOSPITAL NHS FOUNDATION TRUST,22402610,"5,042.00"
Department of Health,NHS Barnsley CCG,31/05/2018,Hcare Srv Rec Fdtn Trust-CQUIN,LONG TERM CONDITIONS,BARNSLEY HOSPITAL NHS FOUNDATION TRUST,22402610,"3,826.00"
Department of Health,NHS Barnsley CCG,31/05/2018,Hcare Srv Rec Fdtn Trust-Contract Baseline,INTERMEDIATE CARE,BARNSLEY HOSPITAL NHS FOUNDATION TRUST,22402610,"201,654.00"
Department of Health,NHS Barnsley CCG,31/05/2018,Hcare Srv Rec Fdtn Trust-Contract Baseline,LONG TERM CONDITIONS,BARNSLEY HOSPITAL NHS FOUNDATION TRUST,22402610,"153,046.00"
Department of Health,NHS Barnsley CCG,31/05/2018,Hcare Srv Rec Fdtn Trust-Contract Baseline,ACUTE COMMISSIONING,BARNSLEY HOSPITAL NHS FOUNDATION TRUST,22383469,"11,669,221.00"
Department of Health,NHS Barnsley CCG,31/05/2018,Hcare Srv Rec Fdtn Trust-CQUIN,ACUTE COMMISSIONING,BARNSLEY HOSPITAL NHS FOUNDATION TRUST,22383470,"10,847.00"
Department of Health,NHS Barnsley CCG,31/05/2018,Hcare Srv Rec Fdtn Trust-Contract Baseline,ACUTE COMMISSIONING,BARNSLEY HOSPITAL NHS FOUNDATION TRUST,22383470,"562,297.00"
Department of Health,NHS Barnsley CCG,30/06/2018,Clinical&Medical-Othe Public Sector,Mental Health Services - S117 Mental Health,BARNSLEY METROPOLITAN BOROUGH COUNCIL,22802438,"39,141.78 "
Department of Health,NHS Barnsley CCG,30/06/2018,Clinical&Medical-Othe Public Sector,Mental Health Services - S117 Mental Health,BARNSLEY METROPOLITAN BOROUGH COUNCIL,22802669,"38,245.34 "
Department of Health,NHS Barnsley CCG,30/06/2018,Clinical&Medical-Othe Public Sector,Mental Health Services - S117 Mental Health,BARNSLEY METROPOLITAN BOROUGH COUNCIL,22802674,"46,042.07 "
Department of Health,NHS Barnsley CCG,30/06/2018,Clinical&Medical-Othe Public Sector,Mental Health Services - S117 Mental Health,BARNSLEY METROPOLITAN BOROUGH COUNCIL,22803059,"(41,748.00)"
Department of Health,NHS Barnsley CCG,30/06/2018,Clinical&Medical-Othe Public Sector,Mental Health Services - S117 Mental Health,BARNSLEY METROPOLITAN BOROUGH COUNCIL,22803063,"(66,785.71)"
Department of Health,NHS Barnsley CCG,30/06/2018,Clinical&Medical-Commercial Sector,ACUTE COMMISSIONING,CLAREMONT HOSPITAL,22547553,"53,719.00 "
Department of Health,NHS Barnsley CCG,30/06/2018,Soc Care-Bed-Based Int Care Servs,INTERMEDIATE CARE,CROWN CARE (IV) LTD,22731961,"26,792.86 "
Department of Health,NHS Barnsley CCG,30/06/2018,Telecoms-Data lines,PRIMARY CARE IT,DAISY COMMUNICATIONS LTD,22562851,"38,733.83 "
Department of Health,NHS Barnsley CCG,30/06/2018,C&M-GMS LES Demand Mgmt,COMMISSIONING SCHEMES,NHS BARNSLEY CCG GP PRACTICE,22547198,"28,992.47 "
Department of Health,NHS Barnsley CCG,30/06/2018,Clinical&Medical-Clinical Other,COMMISSIONING SCHEMES,NHS BARNSLEY CCG GP PRACTICE,22547198,"7,141.05 "
Department of Health,NHS Barnsley CCG,30/06/2018,C&M-GMS DES Extended Hours Access,PRC DELEGATED CO-COMMISSIONING,NHS BARNSLEY CCG GP PRACTICE,22773966,"4,710.10 "
Department of Health,NHS Barnsley CCG,30/06/2018,C&M-GMS DES Learn Dsblty Hlth Chk,PRC DELEGATED CO-COMMISSIONING,NHS BARNSLEY CCG GP PRACTICE,22773966,"3,220.00 "
Department of Health,NHS Barnsley CCG,30/06/2018,C&M-GMS Global Sum,PRC DELEGATED CO-COMMISSIONING,NHS BARNSLEY CCG GP PRACTICE,22773966,"82,638.20 "
Department of Health,NHS Barnsley CCG,30/06/2018,C&M-GMS PCO Locum Adop/Pat/Mat,PRC DELEGATED CO-COMMISSIONING,NHS BARNSLEY CCG GP PRACTICE,22773966,"12,807.69 "
Department of Health,NHS Barnsley CCG,30/06/2018,C&M-GMS PCO Other,PRC DELEGATED CO-COMMISSIONING,NHS BARNSLEY CCG GP PRACTICE,22773966,"6,246.00 "
Department of Health,NHS Barnsley CCG,30/06/2018,C&M-GMS PCO Seniority,PRC DELEGATED CO-COMMISSIONING,NHS BARNSLEY CCG GP PRACTICE,22773966,426.50 
Department of Health,NHS Barnsley CCG,30/06/2018,C&M-GMS Prem Healthcentre Rent,PRC DELEGATED CO-COMMISSIONING,NHS BARNSLEY CCG GP PRACTICE,22773966,"25,297.00 "
Department of Health,NHS Barnsley CCG,30/06/2018,C&M-GMS QOF Achievement,PRC DELEGATED CO-COMMISSIONING,NHS BARNSLEY CCG GP PRACTICE,22773966,"32,555.50 "
Department of Health,NHS Barnsley CCG,30/06/2018,C&M-GMS QOF Aspiration,PRC DELEGATED CO-COMMISSIONING,NHS BARNSLEY CCG GP PRACTICE,22773966,"7,981.53 "
Department of Health,NHS Barnsley CCG,30/06/2018,C&M-PMS Contract Value,PRC DELEGATED CO-COMMISSIONING,NHS BARNSLEY CCG GP PRACTICE,22567823,"43,097.67 "
Department of Health,NHS Barnsley CCG,30/06/2018,C&M-PMS Out of Hours Opt Outs,PRC DELEGATED CO-COMMISSIONING,NHS BARNSLEY CCG GP PRACTICE,22567823,13.26 
Department of Health,NHS Barnsley CCG,30/06/2018,C&M-PMS PCO Seniority,PRC DELEGATED CO-COMMISSIONING,NHS BARNSLEY CCG GP PRACTICE,22567823,133.69 
Department of Health,NHS Barnsley CCG,30/06/2018,C&M-PMS Prem Rates,PRC DELEGATED CO-COMMISSIONING,NHS BARNSLEY CCG GP PRACTICE,22567823,"2,406.00 "
Department of Health,NHS Barnsley CCG,30/06/2018,C&M-PMS QOF Achievement,PRC DELEGATED CO-COMMISSIONING,NHS BARNSLEY CCG GP PRACTICE,22567823,514.52 
Department of Health,NHS Barnsley CCG,30/06/2018,C&M-PMS QOF Aspiration,PRC DELEGATED CO-COMMISSIONING,NHS BARNSLEY CCG GP PRACTICE,22567823,"3,886.85 "
Department of Health,NHS Barnsley CCG,31/05/2018,Hcare Srv Rec Fdtn Trust-CQUIN,ACUTE COMMISSIONING,DONCASTER AND BASSETLAW HOSPITALS NHS FOUNDATION TRUST,22336339,"6,094.00"
Department of Health,NHS Barnsley CCG,31/05/2018,Hcare Srv Rec Fdtn Trust-Contract Baseline,ACUTE COMMISSIONING,DONCASTER AND BASSETLAW HOSPITALS NHS FOUNDATION TRUST,22336339,"522,583.00"
Department of Health,NHS Barnsley CCG,30/06/2018,C&M-GMS LES Demand Mgmt,COMMISSIONING SCHEMES,NHS BARNSLEY CCG GP PRACTICE,22547215,"31,370.95 "
Department of Health,NHS Barnsley CCG,30/06/2018,Clinical&Medical-Clinical Other,COMMISSIONING SCHEMES,NHS BARNSLEY CCG GP PRACTICE,22547215,"9,835.51 "
Department of Health,NHS Barnsley CCG,30/06/2018,C&M-PMS Contract Value,PRC DELEGATED CO-COMMISSIONING,NHS BARNSLEY CCG GP PRACTICE,22567793,"87,871.50 "
Department of Health,NHS Barnsley CCG,30/06/2018,C&M-PMS DES Extended Hours Access,PRC DELEGATED CO-COMMISSIONING,NHS BARNSLEY CCG GP PRACTICE,22567793,"4,977.05 "
Department of Health,NHS Barnsley CCG,30/06/2018,C&M-PMS Out of Hours Opt Outs,PRC DELEGATED CO-COMMISSIONING,NHS BARNSLEY CCG GP PRACTICE,22567793,11.30 
Department of Health,NHS Barnsley CCG,30/06/2018,C&M-PMS PCO Seniority,PRC DELEGATED CO-COMMISSIONING,NHS BARNSLEY CCG GP PRACTICE,22567793,"1,157.45 "
Department of Health,NHS Barnsley CCG,30/06/2018,C&M-PMS Prem Healthcentre Rent,PRC DELEGATED CO-COMMISSIONING,NHS BARNSLEY CCG GP PRACTICE,22567793,"20,733.65 "
Department of Health,NHS Barnsley CCG,30/06/2018,C&M-PMS Prem Notional Rent,PRC DELEGATED CO-COMMISSIONING,NHS BARNSLEY CCG GP PRACTICE,22567793,"1,987.50 "
Department of Health,NHS Barnsley CCG,30/06/2018,C&M-PMS Prem Rates,PRC DELEGATED CO-COMMISSIONING,NHS BARNSLEY CCG GP PRACTICE,22567793,345.00 
Department of Health,NHS Barnsley CCG,30/06/2018,C&M-PMS Prem Water Rates,PRC DELEGATED CO-COMMISSIONING,NHS BARNSLEY CCG GP PRACTICE,22567793,284.86 
Department of Health,NHS Barnsley CCG,30/06/2018,C&M-PMS QOF Achievement,PRC DELEGATED CO-COMMISSIONING,NHS BARNSLEY CCG GP PRACTICE,22567793,"47,064.79 "
Department of Health,NHS Barnsley CCG,30/06/2018,C&M-PMS QOF Aspiration,PRC DELEGATED CO-COMMISSIONING,NHS BARNSLEY CCG GP PRACTICE,22567793,"10,374.08 "
Department of Health,NHS Barnsley CCG,30/06/2018,C&M-PMS Contract Value,PRC DELEGATED CO-COMMISSIONING,NHS BARNSLEY CCG GP PRACTICE,22567797,"51,405.58 "
Department of Health,NHS Barnsley CCG,30/06/2018,C&M-PMS DES Extended Hours Access,PRC DELEGATED CO-COMMISSIONING,NHS BARNSLEY CCG GP PRACTICE,22567797,"3,280.83 "
Department of Health,NHS Barnsley CCG,30/06/2018,C&M-PMS PCO Locum Adop/Pat/Mat,PRC DELEGATED CO-COMMISSIONING,NHS BARNSLEY CCG GP PRACTICE,22567797,"4,633.51 "
Department of Health,NHS Barnsley CCG,30/06/2018,C&M-PMS PCO Seniority,PRC DELEGATED CO-COMMISSIONING,NHS BARNSLEY CCG GP PRACTICE,22567797,"2,061.28 "
Department of Health,NHS Barnsley CCG,30/06/2018,C&M-PMS Prem Healthcentre Rent,PRC DELEGATED CO-COMMISSIONING,NHS BARNSLEY CCG GP PRACTICE,22567797,"21,355.85 "
Department of Health,NHS Barnsley CCG,30/06/2018,C&M-PMS QOF Achievement,PRC DELEGATED CO-COMMISSIONING,NHS BARNSLEY CCG GP PRACTICE,22567797,"19,649.73 "
Department of Health,NHS Barnsley CCG,30/06/2018,C&M-PMS QOF Aspiration,PRC DELEGATED CO-COMMISSIONING,NHS BARNSLEY CCG GP PRACTICE,22567797,"5,139.74 "
Department of Health,NHS Barnsley CCG,30/06/2018,C&M-GMS DES Extended Hours Access,PRC DELEGATED CO-COMMISSIONING,NHS BARNSLEY CCG GP PRACTICE,22773968,"4,656.90 "
Department of Health,NHS Barnsley CCG,30/06/2018,C&M-GMS DES Learn Dsblty Hlth Chk,PRC DELEGATED CO-COMMISSIONING,NHS BARNSLEY CCG GP PRACTICE,22773968,"3,080.00 "
Department of Health,NHS Barnsley CCG,30/06/2018,C&M-GMS Global Sum,PRC DELEGATED CO-COMMISSIONING,NHS BARNSLEY CCG GP PRACTICE,22773968,"74,135.25 "
Department of Health,NHS Barnsley CCG,30/06/2018,C&M-GMS PCO Other,PRC DELEGATED CO-COMMISSIONING,NHS BARNSLEY CCG GP PRACTICE,22773968,679.04 
Department of Health,NHS Barnsley CCG,30/06/2018,C&M-GMS PCO Seniority,PRC DELEGATED CO-COMMISSIONING,NHS BARNSLEY CCG GP PRACTICE,22773968,"3,095.15 "
Department of Health,NHS Barnsley CCG,30/06/2018,C&M-GMS Prem Notional Rent,PRC DELEGATED CO-COMMISSIONING,NHS BARNSLEY CCG GP PRACTICE,22773968,"4,558.08 "
Department of Health,NHS Barnsley CCG,30/06/2018,C&M-GMS Prem Rates,PRC DELEGATED CO-COMMISSIONING,NHS BARNSLEY CCG GP PRACTICE,22773968,"1,092.00 "
Department of Health,NHS Barnsley CCG,30/06/2018,C&M-GMS QOF Achievement,PRC DELEGATED CO-COMMISSIONING,NHS BARNSLEY CCG GP PRACTICE,22773968,"31,243.47 "
Department of Health,NHS Barnsley CCG,30/06/2018,C&M-GMS QOF Aspiration,PRC DELEGATED CO-COMMISSIONING,NHS BARNSLEY CCG GP PRACTICE,22773968,"7,953.33 "
Department of Health,NHS Barnsley CCG,30/06/2018,C&M-GMS DES Extended Hours Access,PRC DELEGATED CO-COMMISSIONING,NHS BARNSLEY CCG GP PRACTICE,22773970,"5,287.70 "
Department of Health,NHS Barnsley CCG,30/06/2018,C&M-GMS DES Learn Dsblty Hlth Chk,PRC DELEGATED CO-COMMISSIONING,NHS BARNSLEY CCG GP PRACTICE,22773970,"1,120.00 "
Department of Health,NHS Barnsley CCG,30/06/2018,C&M-GMS Global Sum,PRC DELEGATED CO-COMMISSIONING,NHS BARNSLEY CCG GP PRACTICE,22773970,"91,635.69 "
Department of Health,NHS Barnsley CCG,30/06/2018,C&M-GMS PCO Seniority,PRC DELEGATED CO-COMMISSIONING,NHS BARNSLEY CCG GP PRACTICE,22773970,"1,635.01 "
Department of Health,NHS Barnsley CCG,30/06/2018,C&M-GMS Prem Healthcentre Rent,PRC DELEGATED CO-COMMISSIONING,NHS BARNSLEY CCG GP PRACTICE,22773970,"3,062.89 "
Department of Health,NHS Barnsley CCG,30/06/2018,C&M-GMS Prem Notional Rent,PRC DELEGATED CO-COMMISSIONING,NHS BARNSLEY CCG GP PRACTICE,22773970,"1,572.92 "
Department of Health,NHS Barnsley CCG,30/06/2018,C&M-GMS Prem Rates,PRC DELEGATED CO-COMMISSIONING,NHS BARNSLEY CCG GP PRACTICE,22773970,"1,286.00 "
Department of Health,NHS Barnsley CCG,30/06/2018,C&M-GMS Prem Water Rates,PRC DELEGATED CO-COMMISSIONING,NHS BARNSLEY CCG GP PRACTICE,22773970,98.43 
Department of Health,NHS Barnsley CCG,30/06/2018,C&M-GMS QOF Achievement,PRC DELEGATED CO-COMMISSIONING,NHS BARNSLEY CCG GP PRACTICE,22773970,"50,868.81 "
Department of Health,NHS Barnsley CCG,30/06/2018,C&M-GMS QOF Aspiration,PRC DELEGATED CO-COMMISSIONING,NHS BARNSLEY CCG GP PRACTICE,22773970,"9,471.17 "
Department of Health,NHS Barnsley CCG,30/06/2018,C&M-PMS Out of Hours Opt Outs,PRC DELEGATED CO-COMMISSIONING,NHS BARNSLEY CCG GP PRACTICE,22567800,"(6,147.73)"
Department of Health,NHS Barnsley CCG,30/06/2018,ME - PMS TPS Added Years Adj EEs,PRC DELEGATED CO-COMMISSIONING,NHS BARNSLEY CCG GP PRACTICE,22567800,(610.96)
Department of Health,NHS Barnsley CCG,30/06/2018,ME-PMS GP Pension EEs-PMS,PRC DELEGATED CO-COMMISSIONING,NHS BARNSLEY CCG GP PRACTICE,22567800,"(13,458.04)"
Department of Health,NHS Barnsley CCG,30/06/2018,ME-PMS GP Pension ERs Adjs - PMS,PRC DELEGATED CO-COMMISSIONING,NHS BARNSLEY CCG GP PRACTICE,22567800,"(14,231.97)"
Department of Health,NHS Barnsley CCG,30/06/2018,C&M-PMS Contract Value,PRC DELEGATED CO-COMMISSIONING,NHS BARNSLEY CCG GP PRACTICE,22567801,"129,796.79 "
Department of Health,NHS Barnsley CCG,30/06/2018,C&M-PMS DES Extended Hours Access,PRC DELEGATED CO-COMMISSIONING,NHS BARNSLEY CCG GP PRACTICE,22567801,"8,091.63 "
Department of Health,NHS Barnsley CCG,30/06/2018,C&M-PMS DES Learn Dsblty Hlth Chk,PRC DELEGATED CO-COMMISSIONING,NHS BARNSLEY CCG GP PRACTICE,22567801,420.00 
Department of Health,NHS Barnsley CCG,30/06/2018,C&M-PMS PCO Other,PRC DELEGATED CO-COMMISSIONING,NHS BARNSLEY CCG GP PRACTICE,22567801,"10,214.00 "
Department of Health,NHS Barnsley CCG,30/06/2018,C&M-PMS PCO Seniority,PRC DELEGATED CO-COMMISSIONING,NHS BARNSLEY CCG GP PRACTICE,22567801,"2,922.40 "
Department of Health,NHS Barnsley CCG,30/06/2018,C&M-PMS Prem Notional Rent,PRC DELEGATED CO-COMMISSIONING,NHS BARNSLEY CCG GP PRACTICE,22567801,"6,333.33 "
Department of Health,NHS Barnsley CCG,30/06/2018,C&M-PMS Prem Rates,PRC DELEGATED CO-COMMISSIONING,NHS BARNSLEY CCG GP PRACTICE,22567801,"2,075.00 "
Department of Health,NHS Barnsley CCG,30/06/2018,C&M-PMS QOF Achievement,PRC DELEGATED CO-COMMISSIONING,NHS BARNSLEY CCG GP PRACTICE,22567801,"49,633.49 "
Department of Health,NHS Barnsley CCG,30/06/2018,C&M-PMS QOF Aspiration,PRC DELEGATED CO-COMMISSIONING,NHS BARNSLEY CCG GP PRACTICE,22567801,"13,531.04 "
Department of Health,NHS Barnsley CCG,30/06/2018,C&M-PMS Cost of Drugs -Dispensing,LOCAL ENHANCED SERVICES,NHS BARNSLEY CCG GP PRACTICE,22802253,"(77,162.38)"
Department of Health,NHS Barnsley CCG,30/06/2018,C&M-PMS Prsc Chrgs Cll&Rmttd by GPs,PRC DELEGATED CO-COMMISSIONING,NHS BARNSLEY CCG GP PRACTICE,22802253,"(5,375.40)"
Department of Health,NHS Barnsley CCG,30/06/2018,C&M-PMS Cost of Drugs -Dispensing,LOCAL ENHANCED SERVICES,NHS BARNSLEY CCG GP PRACTICE,22802254,"147,090.11 "
Department of Health,NHS Barnsley CCG,30/06/2018,C&M-PMS Prof fees Dispensing,PRC DELEGATED CO-COMMISSIONING,NHS BARNSLEY CCG GP PRACTICE,22802254,"27,248.96 "
Department of Health,NHS Barnsley CCG,30/06/2018,C&M-PMS Prsc Chrgs Cll&Rmttd by GPs,LOCAL ENHANCED SERVICES,NHS BARNSLEY CCG GP PRACTICE,22802254,"5,375.40 "
Department of Health,NHS Barnsley CCG,30/06/2018,C&M-GMS Global Sum,PRC DELEGATED CO-COMMISSIONING,NHS BARNSLEY CCG GP PRACTICE,22778017,"21,769.88 "
Department of Health,NHS Barnsley CCG,30/06/2018,C&M-GMS MPIG Correction Factor,PRC DELEGATED CO-COMMISSIONING,NHS BARNSLEY CCG GP PRACTICE,22778017,404.79 
Department of Health,NHS Barnsley CCG,30/06/2018,C&M-GMS PCO Other,PRC DELEGATED CO-COMMISSIONING,NHS BARNSLEY CCG GP PRACTICE,22778017,"2,181.00 "
Department of Health,NHS Barnsley CCG,30/06/2018,C&M-GMS PCO Seniority,PRC DELEGATED CO-COMMISSIONING,NHS BARNSLEY CCG GP PRACTICE,22778017,857.39 
Department of Health,NHS Barnsley CCG,30/06/2018,C&M-GMS Prem Healthcentre Rent,PRC DELEGATED CO-COMMISSIONING,NHS BARNSLEY CCG GP PRACTICE,22778017,"1,433.88 "
Department of Health,NHS Barnsley CCG,30/06/2018,C&M-GMS QOF Achievement,PRC DELEGATED CO-COMMISSIONING,NHS BARNSLEY CCG GP PRACTICE,22778017,"7,875.58 "
Department of Health,NHS Barnsley CCG,30/06/2018,C&M-GMS QOF Aspiration,PRC DELEGATED CO-COMMISSIONING,NHS BARNSLEY CCG GP PRACTICE,22778017,"2,173.13 "
Department of Health,NHS Barnsley CCG,30/06/2018,C&M-GMS DES Learn Dsblty Hlth Chk,PRC DELEGATED CO-COMMISSIONING,NHS BARNSLEY CCG GP PRACTICE,22773972,280.00 
Department of Health,NHS Barnsley CCG,30/06/2018,C&M-GMS Global Sum,PRC DELEGATED CO-COMMISSIONING,NHS BARNSLEY CCG GP PRACTICE,22773972,"40,171.29 "
Department of Health,NHS Barnsley CCG,30/06/2018,C&M-GMS PCO Seniority,PRC DELEGATED CO-COMMISSIONING,NHS BARNSLEY CCG GP PRACTICE,22773972,222.82 
Department of Health,NHS Barnsley CCG,30/06/2018,C&M-GMS Prem Notional Rent,PRC DELEGATED CO-COMMISSIONING,NHS BARNSLEY CCG GP PRACTICE,22773972,"1,562.50 "
Department of Health,NHS Barnsley CCG,30/06/2018,C&M-GMS Prem Rates,PRC DELEGATED CO-COMMISSIONING,NHS BARNSLEY CCG GP PRACTICE,22773972,"1,161.00 "
Department of Health,NHS Barnsley CCG,30/06/2018,C&M-GMS Prem Water Rates,PRC DELEGATED CO-COMMISSIONING,NHS BARNSLEY CCG GP PRACTICE,22773972,35.96 
Department of Health,NHS Barnsley CCG,30/06/2018,C&M-GMS QOF Achievement,PRC DELEGATED CO-COMMISSIONING,NHS BARNSLEY CCG GP PRACTICE,22773972,"17,590.18 "
Department of Health,NHS Barnsley CCG,30/06/2018,C&M-GMS QOF Aspiration,PRC DELEGATED CO-COMMISSIONING,NHS BARNSLEY CCG GP PRACTICE,22773972,"3,963.16 "
Department of Health,NHS Barnsley CCG,30/06/2018,C&M-PMS Contract Value,PRC DELEGATED CO-COMMISSIONING,NHS BARNSLEY CCG GP PRACTICE,22567799,"38,161.37 "
Department of Health,NHS Barnsley CCG,30/06/2018,C&M-PMS DES Extended Hours Access,PRC DELEGATED CO-COMMISSIONING,NHS BARNSLEY CCG GP PRACTICE,22567799,"2,171.70 "
Department of Health,NHS Barnsley CCG,30/06/2018,C&M-PMS PCO Other,PRC DELEGATED CO-COMMISSIONING,NHS BARNSLEY CCG GP PRACTICE,22567799,"3,110.00 "
Department of Health,NHS Barnsley CCG,30/06/2018,C&M-PMS PCO Seniority,PRC DELEGATED CO-COMMISSIONING,NHS BARNSLEY CCG GP PRACTICE,22567799,"1,196.47 "
Department of Health,NHS Barnsley CCG,30/06/2018,C&M-PMS Prem Healthcentre Rent,PRC DELEGATED CO-COMMISSIONING,NHS BARNSLEY CCG GP PRACTICE,22567799,"2,930.13 "
Department of Health,NHS Barnsley CCG,30/06/2018,C&M-PMS Prem Notional Rent,PRC DELEGATED CO-COMMISSIONING,NHS BARNSLEY CCG GP PRACTICE,22567799,"8,600.00 "
Department of Health,NHS Barnsley CCG,30/06/2018,C&M-PMS Prem Rates,PRC DELEGATED CO-COMMISSIONING,NHS BARNSLEY CCG GP PRACTICE,22567799,"1,487.66 "
Department of Health,NHS Barnsley CCG,30/06/2018,C&M-PMS QOF Achievement,PRC DELEGATED CO-COMMISSIONING,NHS BARNSLEY CCG GP PRACTICE,22567799,"6,745.89 "
Department of Health,NHS Barnsley CCG,30/06/2018,C&M-PMS QOF Aspiration,PRC DELEGATED CO-COMMISSIONING,NHS BARNSLEY CCG GP PRACTICE,22567799,"2,399.58 "
Department of Health,NHS Barnsley CCG,30/06/2018,C&M-GMS DES Extended Hours Access,PRC DELEGATED CO-COMMISSIONING,NHS BARNSLEY CCG GP PRACTICE,22773978,"6,452.40 "
Department of Health,NHS Barnsley CCG,30/06/2018,C&M-GMS DES Learn Dsblty Hlth Chk,PRC DELEGATED CO-COMMISSIONING,NHS BARNSLEY CCG GP PRACTICE,22773978,560.00 
Department of Health,NHS Barnsley CCG,30/06/2018,C&M-GMS Global Sum,PRC DELEGATED CO-COMMISSIONING,NHS BARNSLEY CCG GP PRACTICE,22773978,"107,497.76 "
Department of Health,NHS Barnsley CCG,30/06/2018,C&M-GMS PCO Seniority,PRC DELEGATED CO-COMMISSIONING,NHS BARNSLEY CCG GP PRACTICE,22773978,"5,609.53 "
Department of Health,NHS Barnsley CCG,30/06/2018,C&M-GMS Prem Notional Rent,PRC DELEGATED CO-COMMISSIONING,NHS BARNSLEY CCG GP PRACTICE,22773978,"6,333.33 "
Department of Health,NHS Barnsley CCG,30/06/2018,C&M-GMS QOF Achievement,PRC DELEGATED CO-COMMISSIONING,NHS BARNSLEY CCG GP PRACTICE,22773978,"55,691.65 "
Department of Health,NHS Barnsley CCG,30/06/2018,C&M-GMS QOF Aspiration,PRC DELEGATED CO-COMMISSIONING,NHS BARNSLEY CCG GP PRACTICE,22773978,"11,289.06 "
Department of Health,NHS Barnsley CCG,30/06/2018,C&M-GMS DES Extended Hours Access,PRC DELEGATED CO-COMMISSIONING,NHS BARNSLEY CCG GP PRACTICE,22773974,"5,650.60 "
Department of Health,NHS Barnsley CCG,30/06/2018,C&M-GMS DES Learn Dsblty Hlth Chk,PRC DELEGATED CO-COMMISSIONING,NHS BARNSLEY CCG GP PRACTICE,22773974,700.00 
Department of Health,NHS Barnsley CCG,30/06/2018,C&M-GMS Global Sum,PRC DELEGATED CO-COMMISSIONING,NHS BARNSLEY CCG GP PRACTICE,22773974,"95,252.68 "
Department of Health,NHS Barnsley CCG,30/06/2018,C&M-GMS PCO Other,PRC DELEGATED CO-COMMISSIONING,NHS BARNSLEY CCG GP PRACTICE,22773974,"7,285.00 "
Department of Health,NHS Barnsley CCG,30/06/2018,C&M-GMS PCO Seniority,PRC DELEGATED CO-COMMISSIONING,NHS BARNSLEY CCG GP PRACTICE,22773974,"3,074.53 "
Department of Health,NHS Barnsley CCG,30/06/2018,C&M-GMS Prem Notional Rent,PRC DELEGATED CO-COMMISSIONING,NHS BARNSLEY CCG GP PRACTICE,22773974,"13,500.00 "
Department of Health,NHS Barnsley CCG,30/06/2018,C&M-GMS Prem Rates,PRC DELEGATED CO-COMMISSIONING,NHS BARNSLEY CCG GP PRACTICE,22773974,"2,777.39 "
Department of Health,NHS Barnsley CCG,30/06/2018,C&M-GMS QOF Achievement,PRC DELEGATED CO-COMMISSIONING,NHS BARNSLEY CCG GP PRACTICE,22773974,"39,748.38 "
Department of Health,NHS Barnsley CCG,30/06/2018,C&M-GMS QOF Aspiration,PRC DELEGATED CO-COMMISSIONING,NHS BARNSLEY CCG GP PRACTICE,22773974,"9,725.72 "
Department of Health,NHS Barnsley CCG,30/06/2018,C&M-GMS DES Extended Hours Access,PRC DELEGATED CO-COMMISSIONING,NHS BARNSLEY CCG GP PRACTICE,22773976,"5,190.80 "
Department of Health,NHS Barnsley CCG,30/06/2018,C&M-GMS DES Learn Dsblty Hlth Chk,PRC DELEGATED CO-COMMISSIONING,NHS BARNSLEY CCG GP PRACTICE,22773976,280.00 
Department of Health,NHS Barnsley CCG,30/06/2018,C&M-GMS Global Sum,PRC DELEGATED CO-COMMISSIONING,NHS BARNSLEY CCG GP PRACTICE,22773976,"93,422.79 "
Department of Health,NHS Barnsley CCG,30/06/2018,C&M-GMS PCO Seniority,PRC DELEGATED CO-COMMISSIONING,NHS BARNSLEY CCG GP PRACTICE,22773976,"2,803.23 "
Department of Health,NHS Barnsley CCG,30/06/2018,C&M-GMS Prem Healthcentre Rent,PRC DELEGATED CO-COMMISSIONING,NHS BARNSLEY CCG GP PRACTICE,22773976,"33,280.78 "
Department of Health,NHS Barnsley CCG,30/06/2018,C&M-GMS QOF Achievement,PRC DELEGATED CO-COMMISSIONING,NHS BARNSLEY CCG GP PRACTICE,22773976,"40,096.68 "
Department of Health,NHS Barnsley CCG,30/06/2018,C&M-GMS QOF Aspiration,PRC DELEGATED CO-COMMISSIONING,NHS BARNSLEY CCG GP PRACTICE,22773976,"8,618.60 "
Department of Health,NHS Barnsley CCG,30/06/2018,C&M-GMS LES Demand Mgmt,COMMISSIONING SCHEMES,NHS BARNSLEY CCG GP PRACTICE,22603060,"41,842.94 "
Department of Health,NHS Barnsley CCG,30/06/2018,Clinical&Medical-Clinical Other,COMMISSIONING SCHEMES,NHS BARNSLEY CCG GP PRACTICE,22603060,"9,718.31 "
Department of Health,NHS Barnsley CCG,30/06/2018,C&M-GMS DES Extended Hours Access,PRC DELEGATED CO-COMMISSIONING,NHS BARNSLEY CCG GP PRACTICE,22773980,"4,914.83 "
Department of Health,NHS Barnsley CCG,30/06/2018,C&M-GMS Global Sum,PRC DELEGATED CO-COMMISSIONING,NHS BARNSLEY CCG GP PRACTICE,22773980,"79,997.14 "
Department of Health,NHS Barnsley CCG,30/06/2018,C&M-GMS PCO Other,PRC DELEGATED CO-COMMISSIONING,NHS BARNSLEY CCG GP PRACTICE,22773980,711.11 
Department of Health,NHS Barnsley CCG,30/06/2018,C&M-GMS PCO Seniority,PRC DELEGATED CO-COMMISSIONING,NHS BARNSLEY CCG GP PRACTICE,22773980,"1,299.04 "
Department of Health,NHS Barnsley CCG,30/06/2018,C&M-GMS QOF Achievement,PRC DELEGATED CO-COMMISSIONING,NHS BARNSLEY CCG GP PRACTICE,22773980,"48,693.91 "
Department of Health,NHS Barnsley CCG,30/06/2018,C&M-GMS QOF Aspiration,PRC DELEGATED CO-COMMISSIONING,NHS BARNSLEY CCG GP PRACTICE,22773980,"10,371.04 "
Department of Health,NHS Barnsley CCG,30/06/2018,C&M-GMS LES Demand Mgmt,COMMISSIONING SCHEMES,NHS BARNSLEY CCG GP PRACTICE,22547185,"47,904.82 "
Department of Health,NHS Barnsley CCG,30/06/2018,Clinical&Medical-Clinical Other,COMMISSIONING SCHEMES,NHS BARNSLEY CCG GP PRACTICE,22547185,"11,615.18 "
Department of Health,NHS Barnsley CCG,30/06/2018,C&M-PMS Contract Value,PRC DELEGATED CO-COMMISSIONING,NHS BARNSLEY CCG GP PRACTICE,22567803,"138,822.69 "
Department of Health,NHS Barnsley CCG,30/06/2018,C&M-PMS DES Extended Hours Access,PRC DELEGATED CO-COMMISSIONING,NHS BARNSLEY CCG GP PRACTICE,22567803,"8,201.83 "
Department of Health,NHS Barnsley CCG,30/06/2018,C&M-PMS PCO Seniority,PRC DELEGATED CO-COMMISSIONING,NHS BARNSLEY CCG GP PRACTICE,22567803,"4,077.09 "
Department of Health,NHS Barnsley CCG,30/06/2018,C&M-PMS Prem Notional Rent,PRC DELEGATED CO-COMMISSIONING,NHS BARNSLEY CCG GP PRACTICE,22567803,"11,741.66 "
Department of Health,NHS Barnsley CCG,30/06/2018,C&M-PMS QOF Achievement,PRC DELEGATED CO-COMMISSIONING,NHS BARNSLEY CCG GP PRACTICE,22567803,"93,201.35 "
Department of Health,NHS Barnsley CCG,30/06/2018,C&M-PMS QOF Aspiration,PRC DELEGATED CO-COMMISSIONING,NHS BARNSLEY CCG GP PRACTICE,22567803,"14,085.62 "
Department of Health,NHS Barnsley CCG,30/06/2018,C&M-PMS DES Extended Hours Access,PRC DELEGATED CO-COMMISSIONING,NHS BARNSLEY CCG GP PRACTICE,22567804,(144.35)
Department of Health,NHS Barnsley CCG,30/06/2018,C&M-PMS Out of Hours Opt Outs,PRC DELEGATED CO-COMMISSIONING,NHS BARNSLEY CCG GP PRACTICE,22567804,"(4,737.90)"
Department of Health,NHS Barnsley CCG,30/06/2018,C&M-PMS Prem Rates,PRC DELEGATED CO-COMMISSIONING,NHS BARNSLEY CCG GP PRACTICE,22567804,"(3,155.59)"
Department of Health,NHS Barnsley CCG,30/06/2018,ME-PMS GP Pension EEs-PMS,PRC DELEGATED CO-COMMISSIONING,NHS BARNSLEY CCG GP PRACTICE,22567804,"(9,278.33)"
Department of Health,NHS Barnsley CCG,30/06/2018,ME-PMS GP Pension ERs Adjs - PMS,PRC DELEGATED CO-COMMISSIONING,NHS BARNSLEY CCG GP PRACTICE,22567804,"(9,538.72)"
Department of Health,NHS Barnsley CCG,30/06/2018,C&M-PMS Contract Value,PRC DELEGATED CO-COMMISSIONING,NHS BARNSLEY CCG GP PRACTICE,22567805,"95,827.70 "
Department of Health,NHS Barnsley CCG,30/06/2018,C&M-PMS DES Extended Hours Access,PRC DELEGATED CO-COMMISSIONING,NHS BARNSLEY CCG GP PRACTICE,22567805,"5,524.73 "
Department of Health,NHS Barnsley CCG,30/06/2018,C&M-PMS DES Learn Dsblty Hlth Chk,PRC DELEGATED CO-COMMISSIONING,NHS BARNSLEY CCG GP PRACTICE,22567805,"5,600.00 "
Department of Health,NHS Barnsley CCG,30/06/2018,C&M-PMS PCO Other,PRC DELEGATED CO-COMMISSIONING,NHS BARNSLEY CCG GP PRACTICE,22567805,787.44 
Department of Health,NHS Barnsley CCG,30/06/2018,C&M-PMS PCO Seniority,PRC DELEGATED CO-COMMISSIONING,NHS BARNSLEY CCG GP PRACTICE,22567805,"1,191.78 "
Department of Health,NHS Barnsley CCG,30/06/2018,C&M-PMS Prem Actual Rent,PRC DELEGATED CO-COMMISSIONING,NHS BARNSLEY CCG GP PRACTICE,22567805,"12,708.33 "
Department of Health,NHS Barnsley CCG,30/06/2018,C&M-PMS Prem Rates,PRC DELEGATED CO-COMMISSIONING,NHS BARNSLEY CCG GP PRACTICE,22567805,"3,191.00 "
Department of Health,NHS Barnsley CCG,30/06/2018,C&M-PMS QOF Achievement,PRC DELEGATED CO-COMMISSIONING,NHS BARNSLEY CCG GP PRACTICE,22567805,"42,245.11 "
Department of Health,NHS Barnsley CCG,30/06/2018,C&M-PMS QOF Aspiration,PRC DELEGATED CO-COMMISSIONING,NHS BARNSLEY CCG GP PRACTICE,22567805,"10,432.84 "
Department of Health,NHS Barnsley CCG,30/06/2018,C&M-PMS Contract Value,PRC DELEGATED CO-COMMISSIONING,NHS BARNSLEY CCG GP PRACTICE,22567807,"84,613.28 "
Department of Health,NHS Barnsley CCG,30/06/2018,C&M-PMS DES Extended Hours Access,PRC DELEGATED CO-COMMISSIONING,NHS BARNSLEY CCG GP PRACTICE,22567807,"5,381.28 "
Department of Health,NHS Barnsley CCG,30/06/2018,C&M-PMS DES Learn Dsblty Hlth Chk,PRC DELEGATED CO-COMMISSIONING,NHS BARNSLEY CCG GP PRACTICE,22567807,700.00 
Department of Health,NHS Barnsley CCG,30/06/2018,C&M-PMS PCO Seniority,PRC DELEGATED CO-COMMISSIONING,NHS BARNSLEY CCG GP PRACTICE,22567807,"1,230.08 "
Department of Health,NHS Barnsley CCG,30/06/2018,C&M-PMS Prem Actual Rent,PRC DELEGATED CO-COMMISSIONING,NHS BARNSLEY CCG GP PRACTICE,22567807,"8,566.67 "
Department of Health,NHS Barnsley CCG,30/06/2018,C&M-PMS QOF Achievement,PRC DELEGATED CO-COMMISSIONING,NHS BARNSLEY CCG GP PRACTICE,22567807,"16,664.97 "
Department of Health,NHS Barnsley CCG,30/06/2018,C&M-PMS QOF Aspiration,PRC DELEGATED CO-COMMISSIONING,NHS BARNSLEY CCG GP PRACTICE,22567807,"6,865.66 "
Department of Health,NHS Barnsley CCG,30/06/2018,C&M-GMS DES Extended Hours Access,PRC DELEGATED CO-COMMISSIONING,NHS BARNSLEY CCG GP PRACTICE,22773982,"3,232.38 "
Department of Health,NHS Barnsley CCG,30/06/2018,C&M-GMS DES Learn Dsblty Hlth Chk,PRC DELEGATED CO-COMMISSIONING,NHS BARNSLEY CCG GP PRACTICE,22773982,140.00 
Department of Health,NHS Barnsley CCG,30/06/2018,C&M-GMS Global Sum,PRC DELEGATED CO-COMMISSIONING,NHS BARNSLEY CCG GP PRACTICE,22773982,"56,906.72 "
Department of Health,NHS Barnsley CCG,30/06/2018,C&M-GMS PCO Seniority,PRC DELEGATED CO-COMMISSIONING,NHS BARNSLEY CCG GP PRACTICE,22773982,"2,470.06 "
Department of Health,NHS Barnsley CCG,30/06/2018,C&M-GMS Prem Healthcentre Rent,PRC DELEGATED CO-COMMISSIONING,NHS BARNSLEY CCG GP PRACTICE,22773982,"21,594.09 "
Department of Health,NHS Barnsley CCG,30/06/2018,C&M-GMS QOF Achievement,PRC DELEGATED CO-COMMISSIONING,NHS BARNSLEY CCG GP PRACTICE,22773982,"27,285.22 "
Department of Health,NHS Barnsley CCG,30/06/2018,C&M-GMS QOF Aspiration,PRC DELEGATED CO-COMMISSIONING,NHS BARNSLEY CCG GP PRACTICE,22773982,"5,792.35 "
Department of Health,NHS Barnsley CCG,30/06/2018,C&M-PMS Contract Value,PRC DELEGATED CO-COMMISSIONING,NHS BARNSLEY CCG GP PRACTICE,22567809,"99,204.00 "
Department of Health,NHS Barnsley CCG,30/06/2018,C&M-PMS DES Extended Hours Access,PRC DELEGATED CO-COMMISSIONING,NHS BARNSLEY CCG GP PRACTICE,22567809,"6,204.45 "
Department of Health,NHS Barnsley CCG,30/06/2018,C&M-PMS DES Learn Dsblty Hlth Chk,PRC DELEGATED CO-COMMISSIONING,NHS BARNSLEY CCG GP PRACTICE,22567809,"3,500.00 "
Department of Health,NHS Barnsley CCG,30/06/2018,C&M-PMS PCO Seniority,PRC DELEGATED CO-COMMISSIONING,NHS BARNSLEY CCG GP PRACTICE,22567809,"4,483.23 "
Department of Health,NHS Barnsley CCG,30/06/2018,C&M-PMS Prem Rates,PRC DELEGATED CO-COMMISSIONING,NHS BARNSLEY CCG GP PRACTICE,22567809,"3,268.00 "
Department of Health,NHS Barnsley CCG,30/06/2018,C&M-PMS QOF Achievement,PRC DELEGATED CO-COMMISSIONING,NHS BARNSLEY CCG GP PRACTICE,22567809,"35,696.07 "
Department of Health,NHS Barnsley CCG,30/06/2018,C&M-PMS QOF Aspiration,PRC DELEGATED CO-COMMISSIONING,NHS BARNSLEY CCG GP PRACTICE,22567809,"11,132.85 "
Department of Health,NHS Barnsley CCG,30/06/2018,C&M-GMS Global Sum,PRC DELEGATED CO-COMMISSIONING,NHS BARNSLEY CCG GP PRACTICE,22773986,"48,081.76 "
Department of Health,NHS Barnsley CCG,30/06/2018,C&M-GMS PCO Other,PRC DELEGATED CO-COMMISSIONING,NHS BARNSLEY CCG GP PRACTICE,22773986,"3,926.00 "
Department of Health,NHS Barnsley CCG,30/06/2018,C&M-GMS PCO Seniority,PRC DELEGATED CO-COMMISSIONING,NHS BARNSLEY CCG GP PRACTICE,22773986,"2,636.11 "
Department of Health,NHS Barnsley CCG,30/06/2018,C&M-GMS Prem Notional Rent,PRC DELEGATED CO-COMMISSIONING,NHS BARNSLEY CCG GP PRACTICE,22773986,"2,541.67 "
Department of Health,NHS Barnsley CCG,30/06/2018,C&M-GMS Prem Rates,PRC DELEGATED CO-COMMISSIONING,NHS BARNSLEY CCG GP PRACTICE,22773986,502.00 
Department of Health,NHS Barnsley CCG,30/06/2018,C&M-GMS Prem Water Rates,PRC DELEGATED CO-COMMISSIONING,NHS BARNSLEY CCG GP PRACTICE,22773986,153.70 
Department of Health,NHS Barnsley CCG,30/06/2018,C&M-GMS QOF Achievement,PRC DELEGATED CO-COMMISSIONING,NHS BARNSLEY CCG GP PRACTICE,22773986,"18,623.07 "
Department of Health,NHS Barnsley CCG,30/06/2018,C&M-GMS QOF Aspiration,PRC DELEGATED CO-COMMISSIONING,NHS BARNSLEY CCG GP PRACTICE,22773986,"4,113.34 "
Department of Health,NHS Barnsley CCG,30/06/2018,Soc Care-Bed-Based Int Care Servs,INTERMEDIATE CARE,HIGHSTONE MEWS CARE HOME,22757336,"37,656.00 "
Department of Health,NHS Barnsley CCG,30/06/2018,Apprenticeship Levy Payable,BALANCE SHEET,HMRC,22633839,732.00 
Department of Health,NHS Barnsley CCG,30/06/2018,Income tax <1Yr,BALANCE SHEET,HMRC,22633839,"56,994.60 "
Department of Health,NHS Barnsley CCG,30/06/2018,Income tax <1Yr-Student Loans,BALANCE SHEET,HMRC,22633839,"1,204.00 "
Department of Health,NHS Barnsley CCG,30/06/2018,National Insurance < 1 yr-NI- ERS,BALANCE SHEET,HMRC,22633839,"41,355.19 "
Department of Health,NHS Barnsley CCG,30/06/2018,National Insurance < 1 yr-NI-EES,BALANCE SHEET,HMRC,22633839,"30,595.33 "
Department of Health,NHS Barnsley CCG,30/06/2018,C&M-GMS LES Demand Mgmt,COMMISSIONING SCHEMES,NHS BARNSLEY CCG GP PRACTICE,22547151,"50,322.78 "
Department of Health,NHS Barnsley CCG,30/06/2018,Clinical&Medical-Clinical Other,COMMISSIONING SCHEMES,NHS BARNSLEY CCG GP PRACTICE,22547151,"8,263.08 "
Department of Health,NHS Barnsley CCG,30/06/2018,C&M-GMS DES Extended Hours Access,PRC DELEGATED CO-COMMISSIONING,NHS BARNSLEY CCG GP PRACTICE,22773988,"5,639.68 "
Department of Health,NHS Barnsley CCG,30/06/2018,C&M-GMS DES Learn Dsblty Hlth Chk,PRC DELEGATED CO-COMMISSIONING,NHS BARNSLEY CCG GP PRACTICE,22773988,"4,340.00 "
Department of Health,NHS Barnsley CCG,30/06/2018,C&M-GMS Global Sum,PRC DELEGATED CO-COMMISSIONING,NHS BARNSLEY CCG GP PRACTICE,22773988,"86,453.80 "
Department of Health,NHS Barnsley CCG,30/06/2018,C&M-GMS PCO Other,PRC DELEGATED CO-COMMISSIONING,NHS BARNSLEY CCG GP PRACTICE,22773988,"7,262.00 "
Department of Health,NHS Barnsley CCG,30/06/2018,C&M-GMS PCO Seniority,PRC DELEGATED CO-COMMISSIONING,NHS BARNSLEY CCG GP PRACTICE,22773988,"4,634.79 "
Department of Health,NHS Barnsley CCG,30/06/2018,C&M-GMS Prem Healthcentre Rent,PRC DELEGATED CO-COMMISSIONING,NHS BARNSLEY CCG GP PRACTICE,22773988,"20,747.29 "
Department of Health,NHS Barnsley CCG,30/06/2018,C&M-GMS Prem Notional Rent,PRC DELEGATED CO-COMMISSIONING,NHS BARNSLEY CCG GP PRACTICE,22773988,"1,375.00 "
Department of Health,NHS Barnsley CCG,30/06/2018,C&M-GMS QOF Achievement,PRC DELEGATED CO-COMMISSIONING,NHS BARNSLEY CCG GP PRACTICE,22773988,"47,312.83 "
Department of Health,NHS Barnsley CCG,30/06/2018,C&M-GMS QOF Aspiration,PRC DELEGATED CO-COMMISSIONING,NHS BARNSLEY CCG GP PRACTICE,22773988,"9,466.80 "
Department of Health,NHS Barnsley CCG,30/06/2018,C&M-GMS LES Demand Mgmt,COMMISSIONING SCHEMES,NHS BARNSLEY CCG GP PRACTICE,22487968,"37,491.06 "
Department of Health,NHS Barnsley CCG,30/06/2018,C&M-PMS Contract Value,PRC DELEGATED CO-COMMISSIONING,NHS BARNSLEY CCG GP PRACTICE,22567811,"48,659.30 "
Department of Health,NHS Barnsley CCG,30/06/2018,C&M-PMS PCO Other,PRC DELEGATED CO-COMMISSIONING,NHS BARNSLEY CCG GP PRACTICE,22567811,"4,247.00 "
Department of Health,NHS Barnsley CCG,30/06/2018,C&M-PMS PCO Seniority,PRC DELEGATED CO-COMMISSIONING,NHS BARNSLEY CCG GP PRACTICE,22567811,"1,761.29 "
Department of Health,NHS Barnsley CCG,30/06/2018,C&M-PMS Prem Healthcentre Rent,PRC DELEGATED CO-COMMISSIONING,NHS BARNSLEY CCG GP PRACTICE,22567811,"6,045.20 "
Department of Health,NHS Barnsley CCG,30/06/2018,C&M-PMS Prem Notional Rent,PRC DELEGATED CO-COMMISSIONING,NHS BARNSLEY CCG GP PRACTICE,22567811,"3,583.33 "
Department of Health,NHS Barnsley CCG,30/06/2018,C&M-PMS QOF Achievement,PRC DELEGATED CO-COMMISSIONING,NHS BARNSLEY CCG GP PRACTICE,22567811,"24,992.30 "
Department of Health,NHS Barnsley CCG,30/06/2018,C&M-PMS QOF Aspiration,PRC DELEGATED CO-COMMISSIONING,NHS BARNSLEY CCG GP PRACTICE,22567811,"4,927.45 "
Department of Health,NHS Barnsley CCG,30/06/2018,External Data Contracts,BUSINESS INFORMATICS,KIER BUSINESS SERVICES LTD,22617720,"13,850.00 "
Department of Health,NHS Barnsley CCG,30/06/2018,External Data Contracts,COMMISSIONING SCHEMES,KIER BUSINESS SERVICES LTD,22617720,"15,206.00 "
Department of Health,NHS Barnsley CCG,30/06/2018,Telecoms-Data lines,PRIMARY CARE IT,KIER BUSINESS SERVICES LTD,22617720,"48,439.00 "
Department of Health,NHS Barnsley CCG,30/06/2018,External Data Contracts,BUSINESS INFORMATICS,KIER BUSINESS SERVICES LTD,22617728,"13,850.00 "
Department of Health,NHS Barnsley CCG,30/06/2018,External Data Contracts,COMMISSIONING SCHEMES,KIER BUSINESS SERVICES LTD,22617728,"15,206.00 "
Department of Health,NHS Barnsley CCG,30/06/2018,Telecoms-Data lines,PRIMARY CARE IT,KIER BUSINESS SERVICES LTD,22617728,"48,439.00 "
Department of Health,NHS Barnsley CCG,30/06/2018,C&M-PMS Contract Value,PRC DELEGATED CO-COMMISSIONING,NHS BARNSLEY CCG GP PRACTICE,22573018,"27,972.34 "
Department of Health,NHS Barnsley CCG,30/06/2018,C&M-PMS DES Learn Dsblty Hlth Chk,PRC DELEGATED CO-COMMISSIONING,NHS BARNSLEY CCG GP PRACTICE,22573018,140.00 
Department of Health,NHS Barnsley CCG,30/06/2018,C&M-PMS PCO Seniority,PRC DELEGATED CO-COMMISSIONING,NHS BARNSLEY CCG GP PRACTICE,22573018,"1,621.22 "
Department of Health,NHS Barnsley CCG,30/06/2018,C&M-PMS Prem Notional Rent,PRC DELEGATED CO-COMMISSIONING,NHS BARNSLEY CCG GP PRACTICE,22573018,"4,333.33 "
Department of Health,NHS Barnsley CCG,30/06/2018,C&M-PMS Prem Rates,PRC DELEGATED CO-COMMISSIONING,NHS BARNSLEY CCG GP PRACTICE,22573018,"1,024.00 "
Department of Health,NHS Barnsley CCG,30/06/2018,C&M-PMS QOF Achievement,PRC DELEGATED CO-COMMISSIONING,NHS BARNSLEY CCG GP PRACTICE,22573018,"8,821.29 "
Department of Health,NHS Barnsley CCG,30/06/2018,C&M-PMS QOF Aspiration,PRC DELEGATED CO-COMMISSIONING,NHS BARNSLEY CCG GP PRACTICE,22573018,"2,056.83 "
Department of Health,NHS Barnsley CCG,30/06/2018,C&M-PMS Cost of Drugs -Dispensing,LOCAL ENHANCED SERVICES,NHS BARNSLEY CCG GP PRACTICE,22802309,"30,828.85 "
Department of Health,NHS Barnsley CCG,30/06/2018,C&M-PMS Prof fees Dispensing,PRC DELEGATED CO-COMMISSIONING,NHS BARNSLEY CCG GP PRACTICE,22802309,"4,373.71 "
Department of Health,NHS Barnsley CCG,30/06/2018,C&M-PMS Prsc Chrgs Cll&Rmttd by GPs,LOCAL ENHANCED SERVICES,NHS BARNSLEY CCG GP PRACTICE,22802309,"1,443.00 "
Department of Health,NHS Barnsley CCG,30/06/2018,C&M-APMS Contract Value,PRC DELEGATED CO-COMMISSIONING,NHS BARNSLEY CCG GP PRACTICE,22567815,"18,836.78 "
Department of Health,NHS Barnsley CCG,30/06/2018,C&M-APMS Prem Healthcentre Rent,PRC DELEGATED CO-COMMISSIONING,NHS BARNSLEY CCG GP PRACTICE,22567815,"4,802.71 "
Department of Health,NHS Barnsley CCG,30/06/2018,C&M-PMS DES Learn Dsblty Hlth Chk,PRC DELEGATED CO-COMMISSIONING,NHS BARNSLEY CCG GP PRACTICE,22567815,980.00 
Department of Health,NHS Barnsley CCG,30/06/2018,C&M-PMS QOF Achievement,PRC DELEGATED CO-COMMISSIONING,NHS BARNSLEY CCG GP PRACTICE,22567815,"7,365.17 "
Department of Health,NHS Barnsley CCG,30/06/2018,C&M-PMS QOF Aspiration,PRC DELEGATED CO-COMMISSIONING,NHS BARNSLEY CCG GP PRACTICE,22567815,"1,621.22 "
Department of Health,NHS Barnsley CCG,31/05/2018,Hcare Srv Rec NHS Trust-CQUIN,ACUTE COMMISSIONING,LEEDS TEACHING HOSPITALS NHS TRUST,22229567,"1,797.00"
Department of Health,NHS Barnsley CCG,31/05/2018,Hcare Srv Rec NHS Trust-Contract Baseline,ACUTE COMMISSIONING,LEEDS TEACHING HOSPITALS NHS TRUST,22229567,"91,655.00"
Department of Health,NHS Barnsley CCG,30/06/2018,Cont Care- Prior Year Payments,CHC ADULT JOINT FUNDED,MENCAP,22662324,"(24,147.56)"
Department of Health,NHS Barnsley CCG,30/06/2018,Cont Care-Learning Disab(65+),CHC ADULT JOINT FUNDED,MENCAP,22662324,"(6,865.75)"
Department of Health,NHS Barnsley CCG,30/06/2018,Hcare Srv Rec NHS Trust-CQUIN,ACUTE COMMISSIONING,MID YORKSHIRE HOSPITALS NHS TRUST,22488054,"2,465.00 "
Department of Health,NHS Barnsley CCG,30/06/2018,Hcare Srv Rec NHS Trust-Contract Baseline,ACUTE COMMISSIONING,MID YORKSHIRE HOSPITALS NHS TRUST,22488054,"224,013.00 "
Department of Health,NHS Barnsley CCG,31/05/2018,C&M-GMS Prem Other,PRC DELEGATED CO-COMMISSIONING,NHS ENGLAND,22229557,"2,264.65"
Department of Health,NHS Barnsley CCG,31/05/2018,Contract- Refuse & Clinical Waste,PRC DELEGATED CO-COMMISSIONING,NHS ENGLAND,22229557,"7,918.95"
Department of Health,NHS Barnsley CCG,31/05/2018,Recharge : Provided,PRC DELEGATED CO-COMMISSIONING,NHS ENGLAND,22229557,"51,360.00"
Department of Health,NHS Barnsley CCG,30/06/2018,Clinical&Medical-Commercial Sector,ACUTE COMMISSIONING,ONEHEALTH GROUP,22516194,"(49,521.00)"
Department of Health,NHS Barnsley CCG,30/06/2018,Clinical&Medical-Commercial Sector,ACUTE COMMISSIONING,ONEHEALTH GROUP,22687609,"157,481.14 "
Department of Health,NHS Barnsley CCG,30/06/2018,C&M-GMS LES Demand Mgmt,COMMISSIONING SCHEMES,NHS BARNSLEY CCG GP PRACTICE,22547206,"33,035.15 "
Department of Health,NHS Barnsley CCG,30/06/2018,Clinical&Medical-Clinical Other,COMMISSIONING SCHEMES,NHS BARNSLEY CCG GP PRACTICE,22547206,"5,681.93 "
Department of Health,NHS Barnsley CCG,30/06/2018,C&M-GMS LES Demand Mgmt,COMMISSIONING SCHEMES,NHS BARNSLEY CCG GP PRACTICE,22488041,"42,866.19 "
Department of Health,NHS Barnsley CCG,30/06/2018,Clinical&Medical-Clinical Other,COMMISSIONING SCHEMES,NHS BARNSLEY CCG GP PRACTICE,22488041,"12,883.62 "
Department of Health,NHS Barnsley CCG,30/06/2018,Other Gen Supplies & Srv,PATIENT TRANSPORT,PREMIER CARE DIRECT LTD,22487865,"28,557.10 "
Department of Health,NHS Barnsley CCG,30/06/2018,Other Gen Supplies & Srv,PATIENT TRANSPORT,PREMIER CARE DIRECT LTD,22603211,"28,557.10 "
Department of Health,NHS Barnsley CCG,30/06/2018,Hcare Srv Rec Fdtn Trust-CQUIN,MENTAL HEALTH CONTRACTS,ROTHERHAM DONCASTER & SOUTH HUMBER MENTAL HEALTH NHS FOUNDATION TRUST,22516206,425.50 
Department of Health,NHS Barnsley CCG,30/06/2018,Hcare Srv Rec Fdtn Trust-Contract Baseline,MENTAL HEALTH CONTRACTS,ROTHERHAM DONCASTER & SOUTH HUMBER MENTAL HEALTH NHS FOUNDATION TRUST,22516206,"34,043.08 "
Department of Health,NHS Barnsley CCG,31/05/2018,Hcare Srv Rec Fdtn Trust-CQUIN,MENTAL HEALTH CONTRACTS,ROTHERHAM DONCASTER & SOUTH HUMBER MENTAL HEALTH NHS FOUNDATION TRUST,22209040,425.50
Department of Health,NHS Barnsley CCG,31/05/2018,Hcare Srv Rec Fdtn Trust-Contract Baseline,MENTAL HEALTH CONTRACTS,ROTHERHAM DONCASTER & SOUTH HUMBER MENTAL HEALTH NHS FOUNDATION TRUST,22209040,"34,043.08"
Department of Health,NHS Barnsley CCG,30/06/2018,Hcare Srv Rec Fdtn Trust-CQUIN,ACUTE COMMISSIONING,ROTHERHAM NHS FOUNDATION TRUST,22487824,"431,274.00 "
Department of Health,NHS Barnsley CCG,30/06/2018,Hcare Srv Rec Fdtn Trust-Contract Baseline,ACUTE COMMISSIONING,ROTHERHAM NHS FOUNDATION TRUST,22487824,"4,998.00 "
Department of Health,NHS Barnsley CCG,30/06/2018,Hcare Srv Rec Fdtn Trust-CQUIN,COMMUNITY SERVICES,ROTHERHAM NHS FOUNDATION TRUST,22487827,"1,021.00 "
Department of Health,NHS Barnsley CCG,30/06/2018,Hcare Srv Rec Fdtn Trust-Contract Baseline,COMMUNITY SERVICES,ROTHERHAM NHS FOUNDATION TRUST,22487827,"40,828.00 "
Department of Health,NHS Barnsley CCG,30/06/2018,C&M-GMS LES Demand Mgmt,COMMISSIONING SCHEMES,NHS BARNSLEY CCG GP PRACTICE,22488030,"22,304.85 "
Department of Health,NHS Barnsley CCG,30/06/2018,Clinical&Medical-Clinical Other,COMMISSIONING SCHEMES,NHS BARNSLEY CCG GP PRACTICE,22488030,"7,506.25 "
Department of Health,NHS Barnsley CCG,30/06/2018,C&M-GMS DES Extended Hours Access,PRC DELEGATED CO-COMMISSIONING,NHS BARNSLEY CCG GP PRACTICE,22778019,"3,790.98 "
Department of Health,NHS Barnsley CCG,30/06/2018,C&M-GMS Global Sum,PRC DELEGATED CO-COMMISSIONING,NHS BARNSLEY CCG GP PRACTICE,22778019,"61,117.23 "
Department of Health,NHS Barnsley CCG,30/06/2018,C&M-GMS PCO Other,PRC DELEGATED CO-COMMISSIONING,NHS BARNSLEY CCG GP PRACTICE,22778019,"5,055.00 "
Department of Health,NHS Barnsley CCG,30/06/2018,C&M-GMS PCO Seniority,PRC DELEGATED CO-COMMISSIONING,NHS BARNSLEY CCG GP PRACTICE,22778019,"1,759.42 "
Department of Health,NHS Barnsley CCG,30/06/2018,C&M-GMS Prem Notional Rent,PRC DELEGATED CO-COMMISSIONING,NHS BARNSLEY CCG GP PRACTICE,22778019,"8,873.23 "
Department of Health,NHS Barnsley CCG,30/06/2018,C&M-GMS Prem Rates,PRC DELEGATED CO-COMMISSIONING,NHS BARNSLEY CCG GP PRACTICE,22778019,870.00 
Department of Health,NHS Barnsley CCG,30/06/2018,C&M-GMS QOF Aspiration,PRC DELEGATED CO-COMMISSIONING,NHS BARNSLEY CCG GP PRACTICE,22778019,"7,007.14 "
Department of Health,NHS Barnsley CCG,30/06/2018,Hcare Srv Rec Fdtn Trust-CQUIN,ACUTE COMMISSIONING,SHEFFIELD CHILDRENS NHS FOUNDATION TRUST,22531666,"1,722.58 "
Department of Health,NHS Barnsley CCG,30/06/2018,Hcare Srv Rec Fdtn Trust-Contract Baseline,ACUTE COMMISSIONING,SHEFFIELD CHILDRENS NHS FOUNDATION TRUST,22531666,"144,442.74 "
Department of Health,NHS Barnsley CCG,31/05/2018,Hcare Srv Rec Fdtn Trust-CQUIN,ACUTE COMMISSIONING,SHEFFIELD CHILDRENS NHS FOUNDATION TRUST,22304414,"1,722.58"
Department of Health,NHS Barnsley CCG,31/05/2018,Hcare Srv Rec Fdtn Trust-Contract Baseline,ACUTE COMMISSIONING,SHEFFIELD CHILDRENS NHS FOUNDATION TRUST,22304414,"144,442.74"
Department of Health,NHS Barnsley CCG,31/05/2018,Hcare Srv Rec Fdtn Trust-Contract Baseline,ACUTE COMMISSIONING,SHEFFIELD TEACHING HOSPITALS NHS FOUNDATION TRUST,22439741,"1,830,586.00"
Department of Health,NHS Barnsley CCG,31/05/2018,Hcare Srv Rec Fdtn Trust-Contract Baseline,ACUTE COMMISSIONING,SHEFFIELD TEACHING HOSPITALS NHS FOUNDATION TRUST,22439704,"175,894.00"
Department of Health,NHS Barnsley CCG,30/06/2018,Hcare Srv Rec Fdtn Trust-Contract Baseline,COMMUNITY SERVICES,SOUTH WEST YORKSHIRE PARTNERSHIP NHS FOUNDATION TRUST,22516197,"(42,827.49)"
Department of Health,NHS Barnsley CCG,30/06/2018,Hcare Srv Rec Fdtn Trust-Contract Baseline,COMMUNITY SERVICES,SOUTH WEST YORKSHIRE PARTNERSHIP NHS FOUNDATION TRUST,22547101,"587,133.00 "
Department of Health,NHS Barnsley CCG,30/06/2018,Hcare Srv Rec Fdtn Trust-Contract Baseline,INTERMEDIATE CARE,SOUTH WEST YORKSHIRE PARTNERSHIP NHS FOUNDATION TRUST,22547101,"319,906.00 "
Department of Health,NHS Barnsley CCG,30/06/2018,Hcare Srv Rec Fdtn Trust-Contract Baseline,LONG TERM CONDITIONS,SOUTH WEST YORKSHIRE PARTNERSHIP NHS FOUNDATION TRUST,22547101,"145,792.00 "
Department of Health,NHS Barnsley CCG,30/06/2018,Hcare Srv Rec Fdtn Trust-CQUIN,COMMUNITY SERVICES,SOUTH WEST YORKSHIRE PARTNERSHIP NHS FOUNDATION TRUST,22547189,"101,868.30 "
Department of Health,NHS Barnsley CCG,30/06/2018,Hcare Srv Rec Fdtn Trust-CQUIN,LEARNING DIFFICULTIES,SOUTH WEST YORKSHIRE PARTNERSHIP NHS FOUNDATION TRUST,22547189,"10,534.06 "
Department of Health,NHS Barnsley CCG,30/06/2018,Hcare Srv Rec Fdtn Trust-CQUIN,MENTAL HEALTH SERVICES - ADULTS,SOUTH WEST YORKSHIRE PARTNERSHIP NHS FOUNDATION TRUST,22547189,"128,793.37 "
Department of Health,NHS Barnsley CCG,30/06/2018,Hcare Srv Rec Fdtn Trust-CQUIN,MENTAL HEALTH SERVICES - OLDER PEOPLE,SOUTH WEST YORKSHIRE PARTNERSHIP NHS FOUNDATION TRUST,22547189,"13,200.77 "
Department of Health,NHS Barnsley CCG,30/06/2018,Hcare Srv Rec Fdtn Trust-CQUIN,IMPROVING ACCESS TO PSYCHOLOGICAL THERAPIES,SOUTH WEST YORKSHIRE PARTNERSHIP NHS FOUNDATION TRUST,22603099,"3,808.00 "
Department of Health,NHS Barnsley CCG,30/06/2018,Hcare Srv Rec Fdtn Trust-CQUIN,LEARNING DIFFICULTIES,SOUTH WEST YORKSHIRE PARTNERSHIP NHS FOUNDATION TRUST,22603099,"2,164.00 "
Department of Health,NHS Barnsley CCG,30/06/2018,Hcare Srv Rec Fdtn Trust-CQUIN,MENTAL HEALTH SERVICES - ADULTS,SOUTH WEST YORKSHIRE PARTNERSHIP NHS FOUNDATION TRUST,22603099,"23,055.00 "
Department of Health,NHS Barnsley CCG,30/06/2018,Hcare Srv Rec Fdtn Trust-CQUIN,MENTAL HEALTH SERVICES - OLDER PEOPLE,SOUTH WEST YORKSHIRE PARTNERSHIP NHS FOUNDATION TRUST,22603099,"2,712.00 "
Department of Health,NHS Barnsley CCG,30/06/2018,Hcare Srv Rec Fdtn Trust-Contract Baseline,COMMUNITY SERVICES,SOUTH WEST YORKSHIRE PARTNERSHIP NHS FOUNDATION TRUST,22603099,"1,221,967.00 "
Department of Health,NHS Barnsley CCG,30/06/2018,Hcare Srv Rec Fdtn Trust-Contract Baseline,IMPROVING ACCESS TO PSYCHOLOGICAL THERAPIES,SOUTH WEST YORKSHIRE PARTNERSHIP NHS FOUNDATION TRUST,22603099,"304,631.00 "
Department of Health,NHS Barnsley CCG,30/06/2018,Hcare Srv Rec Fdtn Trust-Contract Baseline,LEARNING DIFFICULTIES,SOUTH WEST YORKSHIRE PARTNERSHIP NHS FOUNDATION TRUST,22603099,"176,044.00 "
Department of Health,NHS Barnsley CCG,30/06/2018,Hcare Srv Rec Fdtn Trust-Contract Baseline,MENTAL HEALTH SERVICES - ADULTS,SOUTH WEST YORKSHIRE PARTNERSHIP NHS FOUNDATION TRUST,22603099,"1,844,345.00 "
Department of Health,NHS Barnsley CCG,30/06/2018,Hcare Srv Rec Fdtn Trust-Contract Baseline,MENTAL HEALTH SERVICES - OLDER PEOPLE,SOUTH WEST YORKSHIRE PARTNERSHIP NHS FOUNDATION TRUST,22603099,"216,952.00 "
Department of Health,NHS Barnsley CCG,30/06/2018,Hcare Srv Rec Fdtn Trust-Contract Baseline,COMMUNITY SERVICES,SOUTH WEST YORKSHIRE PARTNERSHIP NHS FOUNDATION TRUST,22757264,"587,133.00 "
Department of Health,NHS Barnsley CCG,30/06/2018,Hcare Srv Rec Fdtn Trust-Contract Baseline,INTERMEDIATE CARE,SOUTH WEST YORKSHIRE PARTNERSHIP NHS FOUNDATION TRUST,22757264,"319,906.00 "
Department of Health,NHS Barnsley CCG,30/06/2018,Hcare Srv Rec Fdtn Trust-Contract Baseline,LONG TERM CONDITIONS,SOUTH WEST YORKSHIRE PARTNERSHIP NHS FOUNDATION TRUST,22757264,"145,792.00 "
Department of Health,NHS Barnsley CCG,30/06/2018,Hcare Srv Rec Fdtn Trust-CQUIN,COMMUNITY SERVICES,SOUTH WEST YORKSHIRE PARTNERSHIP NHS FOUNDATION TRUST,22806211,"15,086.00 "
Department of Health,NHS Barnsley CCG,30/06/2018,Hcare Srv Rec Fdtn Trust-CQUIN,IMPROVING ACCESS TO PSYCHOLOGICAL THERAPIES,SOUTH WEST YORKSHIRE PARTNERSHIP NHS FOUNDATION TRUST,22806211,"3,808.00 "
Department of Health,NHS Barnsley CCG,30/06/2018,Hcare Srv Rec Fdtn Trust-CQUIN,LEARNING DIFFICULTIES,SOUTH WEST YORKSHIRE PARTNERSHIP NHS FOUNDATION TRUST,22806211,"2,164.00 "
Department of Health,NHS Barnsley CCG,30/06/2018,Hcare Srv Rec Fdtn Trust-CQUIN,MENTAL HEALTH SERVICES - ADULTS,SOUTH WEST YORKSHIRE PARTNERSHIP NHS FOUNDATION TRUST,22806211,"23,054.00 "
Department of Health,NHS Barnsley CCG,30/06/2018,Hcare Srv Rec Fdtn Trust-CQUIN,MENTAL HEALTH SERVICES - OLDER PEOPLE,SOUTH WEST YORKSHIRE PARTNERSHIP NHS FOUNDATION TRUST,22806211,"2,712.00 "
Department of Health,NHS Barnsley CCG,30/06/2018,Hcare Srv Rec Fdtn Trust-Contract Baseline,COMMUNITY SERVICES,SOUTH WEST YORKSHIRE PARTNERSHIP NHS FOUNDATION TRUST,22806211,"1,206,883.00 "
Department of Health,NHS Barnsley CCG,30/06/2018,Hcare Srv Rec Fdtn Trust-Contract Baseline,IMPROVING ACCESS TO PSYCHOLOGICAL THERAPIES,SOUTH WEST YORKSHIRE PARTNERSHIP NHS FOUNDATION TRUST,22806211,"304,631.00 "
Department of Health,NHS Barnsley CCG,30/06/2018,Hcare Srv Rec Fdtn Trust-Contract Baseline,LEARNING DIFFICULTIES,SOUTH WEST YORKSHIRE PARTNERSHIP NHS FOUNDATION TRUST,22806211,"176,044.00 "
Department of Health,NHS Barnsley CCG,30/06/2018,Hcare Srv Rec Fdtn Trust-Contract Baseline,MENTAL HEALTH SERVICES - ADULTS,SOUTH WEST YORKSHIRE PARTNERSHIP NHS FOUNDATION TRUST,22806211,"1,844,347.00 "
Department of Health,NHS Barnsley CCG,30/06/2018,Hcare Srv Rec Fdtn Trust-Contract Baseline,MENTAL HEALTH SERVICES - OLDER PEOPLE,SOUTH WEST YORKSHIRE PARTNERSHIP NHS FOUNDATION TRUST,22806211,"216,952.00 "
Department of Health,NHS Barnsley CCG,30/06/2018,Clinical&Medical-Commercial Sector,NCAS/OATS,SPAMEDICA LTD,22806024,"62,485.34 "
Department of Health,NHS Barnsley CCG,30/06/2018,C&M-PMS Contract Value,PRC DELEGATED CO-COMMISSIONING,NHS BARNSLEY CCG GP PRACTICE,22567813,"71,041.32 "
Department of Health,NHS Barnsley CCG,30/06/2018,C&M-PMS PCO Seniority,PRC DELEGATED CO-COMMISSIONING,NHS BARNSLEY CCG GP PRACTICE,22567813,"2,093.11 "
Department of Health,NHS Barnsley CCG,30/06/2018,C&M-PMS Prem Actual Rent,PRC DELEGATED CO-COMMISSIONING,NHS BARNSLEY CCG GP PRACTICE,22567813,319.38 
Department of Health,NHS Barnsley CCG,30/06/2018,C&M-PMS Prem Healthcentre Rent,PRC DELEGATED CO-COMMISSIONING,NHS BARNSLEY CCG GP PRACTICE,22567813,"17,485.37 "
Department of Health,NHS Barnsley CCG,30/06/2018,C&M-PMS QOF Achievement,PRC DELEGATED CO-COMMISSIONING,NHS BARNSLEY CCG GP PRACTICE,22567813,"26,674.59 "
Department of Health,NHS Barnsley CCG,30/06/2018,C&M-PMS QOF Aspiration,PRC DELEGATED CO-COMMISSIONING,NHS BARNSLEY CCG GP PRACTICE,22567813,"6,630.93 "
Department of Health,NHS Barnsley CCG,30/06/2018,C&M-GMS LES Demand Mgmt,COMMISSIONING SCHEMES,NHS BARNSLEY CCG GP PRACTICE,22487937,"22,350.41 "
Department of Health,NHS Barnsley CCG,30/06/2018,Clinical&Medical-Clinical Other,COMMISSIONING SCHEMES,NHS BARNSLEY CCG GP PRACTICE,22487937,"10,810.79 "
Department of Health,NHS Barnsley CCG,30/06/2018,C&M-PMS Contract Value,PRC DELEGATED CO-COMMISSIONING,NHS BARNSLEY CCG GP PRACTICE,22573016,"41,124.25 "
Department of Health,NHS Barnsley CCG,30/06/2018,C&M-PMS DES Extended Hours Access,PRC DELEGATED CO-COMMISSIONING,NHS BARNSLEY CCG GP PRACTICE,22573016,"2,314.20 "
Department of Health,NHS Barnsley CCG,30/06/2018,C&M-PMS Out of Hours Opt Outs,PRC DELEGATED CO-COMMISSIONING,NHS BARNSLEY CCG GP PRACTICE,22573016,3.29 
Department of Health,NHS Barnsley CCG,30/06/2018,C&M-PMS PCO Other,PRC DELEGATED CO-COMMISSIONING,NHS BARNSLEY CCG GP PRACTICE,22573016,726.60 
Department of Health,NHS Barnsley CCG,30/06/2018,C&M-PMS Prem Healthcentre Rent,PRC DELEGATED CO-COMMISSIONING,NHS BARNSLEY CCG GP PRACTICE,22573016,"1,107.86 "
Department of Health,NHS Barnsley CCG,30/06/2018,C&M-PMS Prem Rates,PRC DELEGATED CO-COMMISSIONING,NHS BARNSLEY CCG GP PRACTICE,22573016,"1,573.00 "
Department of Health,NHS Barnsley CCG,30/06/2018,C&M-PMS Prem Water Rates,PRC DELEGATED CO-COMMISSIONING,NHS BARNSLEY CCG GP PRACTICE,22573016,187.46 
Department of Health,NHS Barnsley CCG,30/06/2018,C&M-PMS QOF Achievement,PRC DELEGATED CO-COMMISSIONING,NHS BARNSLEY CCG GP PRACTICE,22573016,"12,236.37 "
Department of Health,NHS Barnsley CCG,30/06/2018,C&M-PMS QOF Aspiration,PRC DELEGATED CO-COMMISSIONING,NHS BARNSLEY CCG GP PRACTICE,22573016,"4,023.80 "
Department of Health,NHS Barnsley CCG,30/06/2018,Hcare Srv Rec NHS Trust-Contract Baseline,NHS 111,YORKSHIRE AMBULANCE SERVICE NHS TRUST,22487988,"55,687.00 "
Department of Health,NHS Barnsley CCG,30/06/2018,Hcare Srv Rec NHS Trust-Contract Baseline,PATIENT TRANSPORT,YORKSHIRE AMBULANCE SERVICE NHS TRUST,22487990,"129,241.20 "
Department of Health,NHS Barnsley CCG,30/06/2018,Hcare Srv Rec NHS Trust-Contract Baseline,AMBULANCE SERVICES,YORKSHIRE AMBULANCE SERVICE NHS TRUST,22516200,"656,909.00 "
,,,,,,,"32,116,125.00 "
